bitfinex/quotes_ETHUSD_20220109
["timestamp","ask_amount","ask_price","bid_price","bid_amount"]
[1641697948215,0.00113685,3129.9,3129.5,0.80007684]
[1641697948714,7.77392285,3130.8,3129.5,0.80007684]
[1641697948914,3.19644,3130.8,3129.6,0.00170527]
[1641697949116,0.00397896,3130.6,3129.6,0.00170527]
[1641697949414,0.05730171,3130.5,3129.6,0.00170527]
[1641697949814,0.80181212,3130.4,3129.6,0.00170527]
[1641697950013,0.80181212,3130.4,3130.0,1.61587263]
[1641697950214,0.00227369,3130.3,3130.0,1.61587263]
[1641697950661,0.00170527,3130.2,3130.0,1.61587263]
[1641697950858,0.00170527,3130.2,3129.6,0.00170527]
[1641697951061,0.00113685,3130.1,3129.6,0.00170527]
[1641697951259,0.79901,3129.9,3129.4,1.03853465]
[1641697951462,0.79901,3129.9,3129.5,0.00227369]
[1641697952359,0.00284212,3130.4,3129.3,4.02864912]
[1641697952559,0.05673329,3130.4,3129.3,4.02864912]
[1641697952760,0.00227369,3130.3,3129.4,0.00284212]
[1641697952962,0.79905,3129.9,3129.4,0.00284212]
[1641697953164,0.79905,3129.9,3129.3,1.86317855]
[1641697953360,0.79905,3129.9,3129.4,0.00284212]
[1641697954808,0.79905,3129.9,3129.4,1.60079212]
[1641697955206,0.79905,3129.9,3129.5,0.00227369]
[1641697955607,0.79905,3129.9,3129.3,0.00341054]
[1641697956607,0.79905,3129.9,3129.4,0.79898]
[1641697956808,0.79905,3129.9,3129.4,2.13526644]
[1641697957008,0.79905,3129.9,3129.5,0.00227369]
[1641697958964,0.79905,3129.9,3129.5,0.80123369]
[1641697959366,0.00170527,3130.2,3129.6,0.00170527]
[1641697959367,0.79889,3130.1,3129.6,0.00170527]
[1641697959566,0.05389117,3130.8,3130.5,0.68683468]
[1641697959764,0.48490562,3131.5,3130.5,1.45463468]
[1641697959966,0.48490562,3131.5,3130.7,0.79863]
[1641697960165,0.48490562,3131.5,3130.6,3.59083678]
[1641697960566,1.28353562,3131.5,3130.7,1.59711]
[1641697961566,1.33742679,3131.5,3130.9,0.79862]
[1641697961766,1.33742679,3131.5,3131.0,1.91241047]
[1641697962007,1.33742679,3131.5,3130.9,0.79862]
[1641697962209,1.33742679,3131.5,3130.8,2.0271843]
[1641697962408,1.33742679,3131.5,3130.4,2.01824881]
[1641697962610,1.33742679,3131.5,3130.2,0.13819997]
[1641697962611,2.79542679,3131.5,3130.2,0.13819997]
[1641697963208,1.79542679,3131.5,3130.2,0.13819997]
[1641697964009,1.79542679,3131.5,3130.3,0.79874]
[1641697964209,1.79542679,3131.5,3130.4,2.06267384]
[1641697965762,1.33742679,3131.5,3130.2,2.2593636]
[1641697966666,1.33742679,3131.5,3130.7,1.62219278]
[1641697968068,2.84046334,3131.4,3130.7,1.62219278]
[1641697968273,1.59797,3131.1,3130.7,1.62219278]
[1641697968469,2.05597,3131.1,3130.7,1.62219278]
[1641697968670,0.05389117,3131.0,3130.7,1.62219278]
[1641697969067,0.00397896,3130.9,3130.7,1.62219278]
[1641697969268,0.7989659,3130.8,3130.3,1.62219278]
[1641697969509,0.79897,3130.6,3130.3,1.62219278]
[1641697969912,0.00170527,3130.5,3130.3,1.62219278]
[1641697970110,0.00170527,3130.5,3130.2,1.62219278]
[1641697970309,0.85285707,3130.8,3130.2,1.62219278]
[1641697970310,0.00113685,3130.4,3130.2,1.62219278]
[1641697970711,0.00284212,3130.7,3130.2,1.62219278]
[1641697971112,0.00227369,3130.6,3130.2,1.62219278]
[1641697971314,0.79898,3130.4,3130.2,1.62219278]
[1641697972313,0.79898,3130.4,3130.3,1.62219278]
[1641697972713,0.80011685,3130.4,3130.3,1.62219278]
[1641697973158,1.59795,3130.5,3130.3,1.62219278]
[1641697974659,0.79898,3130.4,3130.2,1.62219278]
[1641697975862,0.79898,3130.4,3129.9,1.2189]
[1641697976064,0.79898,3130.4,3130.1,0.79884]
[1641697976464,0.79898,3130.4,3130.2,0.00113685]
[1641697976926,0.79898,3130.4,3129.9,0.80170212]
[1641697977115,0.79898,3130.4,3130.1,1.88650693]
[1641697977517,0.79898,3130.4,3130.2,0.00113685]
[1641697978115,0.79898,3130.4,3129.9,0.00284212]
[1641697978718,0.85287117,3130.4,3129.9,0.00284212]
[1641697978916,0.85287117,3130.4,3129.8,0.00341054]
[1641697979118,0.85287117,3130.4,3129.6,0.00454739]
[1641697979318,1.85287117,3130.4,3129.6,0.00454739]
[1641697979524,0.85287117,3130.4,3129.6,0.00454739]
[1641697979817,0.85287117,3130.4,3129.6,0.62408166]
[1641697980217,0.85287117,3130.4,3129.7,0.00397897]
[1641697981759,0.85287117,3130.4,3130.1,1.62305467]
[1641697982162,0.85287117,3130.4,3130.2,0.00113685]
[1641697984916,0.79898,3130.4,3130.2,0.00113685]
[1641697985114,0.79877,3130.6,3130.3,4.63631723]
[1641697985514,0.00227369,3130.8,3130.3,5.23631723]
[1641697985713,0.00227369,3130.8,3130.3,5.57071723]
[1641697985912,0.00170527,3130.7,3130.3,5.57071723]
[1641697986314,0.00113684,3130.6,3130.4,0.79874]
[1641697986516,0.00113684,3130.6,3130.3,0.9344]
[1641697986715,0.00113684,3130.6,3130.2,1.89857685]
[1641697986914,0.00113684,3130.6,3130.2,2.19857685]
[1641697988017,0.79881,3130.5,3130.2,2.19857685]
[1641697988659,0.79881,3130.5,3130.3,0.79878]
[1641697988861,0.79539948,3130.5,3130.3,0.79878]
[1641697989062,0.79539948,3130.5,3130.4,0.6]
[1641697989265,0.00113684,3130.6,3130.4,0.6]
[1641697990767,0.00113684,3130.6,3130.4,1.3987288]
[1641697990964,0.00113684,3130.6,3130.4,0.6]
[1641697994713,0.00113684,3130.6,3130.4,1.3987159]
[1641697996163,0.00113684,3130.6,3130.4,0.6]
[1641697997766,0.00113684,3130.6,3130.2,1.59856685]
[1641697997969,0.79882,3130.5,3130.2,1.59856685]
[1641697998169,0.79882,3130.5,3130.2,0.00113685]
[1641697998568,0.79882,3130.5,3130.1,0.00170527]
[1641697998968,0.79882,3130.5,3130.1,0.80053527]
[1641697999419,0.79882,3130.5,3130.2,0.00113685]
[1641698000012,0.76491404,3130.6,3130.2,0.00113685]
[1641698000211,0.76491404,3130.6,3130.2,0.79995685]
[1641698000518,0.76491404,3130.6,3130.3,0.00170527]
[1641698000712,0.79882,3130.5,3130.3,0.00170527]
[1641698000913,0.79882,3130.5,3129.9,1.2431]
[1641698000914,0.79882,3130.5,3130.0,0.00341054]
[1641698001114,1.59788,3130.5,3130.0,0.00341054]
[1641698001414,0.05405036,3130.4,3130.0,0.00341054]
[1641698002013,0.05405036,3130.4,3129.7,0.00511581]
[1641698002816,2.45121036,3130.4,3129.7,0.00511581]
[1641698003163,3.45121036,3130.4,3129.7,0.00511581]
[1641698003762,3.39716,3130.4,3129.7,0.00511581]
[1641698003961,2.39716,3130.4,3129.7,0.00511581]
[1641698004162,3.39716,3130.4,3129.7,0.00511581]
[1641698005865,2.39716,3130.4,3129.7,0.80404581]
[1641698006063,2.39716,3130.4,3129.9,0.3]
[1641698006464,2.39716,3130.4,3130.0,0.00341054]
[1641698007110,2.85461,3131.1,3130.0,0.00341054]
[1641698007311,1.0,3131.0,3130.0,0.00341054]
[1641698007514,1.05632406,3131.0,3129.9,0.00397896]
[1641698007712,1.05632406,3131.0,3129.9,4.02921754]
[1641698007713,0.05405036,3130.9,3129.9,4.02921754]
[1641698008112,1.59791,3130.6,3130.0,0.00341054]
[1641698009111,1.59791,3130.6,3129.9,0.00397896]
[1641698010111,1.59791,3130.6,3130.0,0.79886]
[1641698010312,1.59791,3130.6,3129.9,0.00397896]
[1641698010512,1.59791,3130.6,3130.1,0.00284211]
[1641698010762,1.59791,3130.6,3130.0,0.79882]
[1641698011071,0.00113685,3130.8,3130.3,0.79875]
[1641698011264,0.00113685,3130.8,3130.5,0.52042803]
[1641698011562,0.00113685,3130.8,3130.6,1.29909683]
[1641698012567,0.79982685,3130.8,3130.6,0.79866]
[1641698012768,0.79982685,3130.8,3130.6,1.597312]
[1641698013365,0.79982685,3130.8,3130.6,0.79866]
[1641698014615,0.79982685,3130.8,3130.5,0.52042803]
[1641698016016,0.79982685,3130.8,3130.6,0.79873]
[1641698016721,0.79982685,3130.8,3130.4,0.00113684]
[1641698017320,0.85387721,3130.8,3130.4,0.00113684]
[1641698017716,0.79982685,3130.8,3130.4,0.00113684]
[1641698017920,3.1,3130.7,3130.3,3.62426611]
[1641698018163,0.79896,3130.5,3130.3,3.62426611]
[1641698018364,1.59905684,3130.6,3129.5,1.2209]
[1641698018565,1.59905684,3130.6,3129.5,1.8209]
[1641698018767,1.59905684,3130.6,3130.2,0.79879]
[1641698019568,0.79897,3130.4,3130.3,0.79879]
[1641698019966,0.79897,3130.4,3130.1,2.3963384]
[1641698020367,0.79897,3130.4,3130.2,0.00113685]
[1641698020967,0.79897,3130.4,3130.0,0.8011437]
[1641698021167,0.79897,3130.4,3130.1,0.00170527]
[1641698021567,0.79897,3130.4,3129.5,4.23633058]
[1641698021568,0.79897,3130.4,3130.0,0.61401582]
[1641698021768,0.79987684,3130.6,3130.2,0.79878]
[1641698022021,0.00113684,3130.6,3130.2,1.39878]
[1641698022220,0.00113684,3130.6,3130.3,1.1944]
[1641698022422,12.06937063,3131.7,3130.3,1.1944]
[1641698022720,0.00568424,3131.6,3130.4,0.00113684]
[1641698023122,0.00511582,3131.5,3130.6,0.79872]
[1641698023322,0.00511582,3131.5,3130.5,0.7987019]
[1641698023521,0.00454739,3131.4,3130.5,0.7987019]
[1641698023721,0.00454739,3131.4,3130.5,2.3959619]
[1641698023929,12.06937063,3131.7,3131.3,1.62642694]
[1641698024123,2.39622,3131.5,3131.3,1.62642694]
[1641698024725,3.993666,3131.5,3131.3,1.62642694]
[1641698026164,3.194936,3131.5,3131.3,1.62642694]
[1641698028173,3.194936,3131.5,3130.4,3.99033684]
[1641698028174,3.194936,3131.5,3131.2,1.62642694]
[1641698029824,3.194936,3131.5,3131.3,1.62642694]
[1641698030525,2.39622,3131.5,3131.3,1.62642694]
[1641698031526,2.39622,3131.5,3131.0,1.29887594]
[1641698032727,2.39622,3131.5,3131.1,0.79858]
[1641698033161,2.39622,3131.5,3131.0,0.50026594]
[1641698035164,2.39622,3131.5,3131.0,1.29883594]
[1641698035367,2.39622,3131.5,3131.1,1.26742558]
[1641698036165,0.80442424,3131.6,3131.2,2.32213279]
[1641698036365,0.80442424,3131.6,3131.3,0.79838]
[1641698036366,0.00568424,3131.6,3131.3,0.79838]
[1641698036566,0.00511582,3131.5,3131.4,0.3]
[1641698036769,0.00511582,3131.5,3131.4,0.46]
[1641698037420,0.00511582,3131.5,3131.4,5.46474954]
[1641698038418,0.79833,3132.2,3131.7,1.5966]
[1641698038619,0.79833,3132.2,3132.1,0.61966737]
[1641698039018,0.05405036,3132.4,3131.8,1.5965968]
[1641698039220,0.05405036,3132.4,3131.6,1.5966]
[1641698039525,0.00341054,3132.1,3131.6,1.8966]
[1641698039718,0.00341054,3132.1,3131.6,3.4932854]
[1641698039917,0.79842,3131.9,3131.6,3.4932854]
[1641698040118,0.79842,3131.9,3131.6,3.1932854]
[1641698040319,0.00170527,3131.8,3131.7,2.39512]
[1641698040522,0.76488791,3132.3,3131.7,1.59672]
[1641698040769,0.76488791,3132.3,3131.8,0.79839]
[1641698040971,0.7984,3132.1,3131.8,1.5967677]
[1641698041169,0.7984,3132.1,3131.8,2.22498849]
[1641698041370,0.00113684,3132.0,3131.8,2.22498849]
[1641698042269,0.00113684,3132.0,3131.8,3.27624697]
[1641698042669,0.00113684,3132.0,3131.8,4.07461697]
[1641698042869,0.00113684,3132.0,3131.6,1.5968635]
[1641698043169,0.79844,3131.9,3131.6,0.79845]
[1641698043370,0.79844,3131.9,3131.4,1.59679]
[1641698043570,0.79844,3131.9,3131.3,2.79826]
[1641698043770,0.79844,3131.9,3131.5,0.00170527]
[1641698043971,0.00113684,3132.0,3131.7,1.38609864]
[1641698044171,0.00113684,3132.0,3131.7,1.98609864]
[1641698044418,0.00113684,3132.0,3131.7,2.93492864]
[1641698044914,0.00113684,3132.0,3131.7,3.73319864]
[1641698045716,0.00113684,3132.0,3131.8,0.7982662]
[1641698045918,0.00113684,3132.0,3131.8,1.6827662]
[1641698047122,0.00113684,3132.0,3131.8,3.2792962]
[1641698047320,0.00113684,3132.0,3131.9,18.68]
[1641698047519,0.00113684,3132.0,3131.9,19.28]
[1641698048272,0.79828,3132.5,3132.0,4.45]
[1641698048464,0.79828,3132.5,3132.4,0.68295589]
[1641698048665,1.59656,3132.8,3132.4,5.33295589]
[1641698048866,0.79821,3132.7,3132.4,5.33295589]
[1641698049166,6.16,3133.4,3132.4,6.14385589]
[1641698049167,0.00341054,3132.6,3132.4,6.14385589]
[1641698049567,6.16,3133.4,3132.4,6.94203589]
[1641698049568,0.00284212,3132.5,3132.4,6.94203589]
[1641698049768,0.00284212,3132.5,3132.4,8.90370953]
[1641698049966,0.00284212,3132.5,3132.4,9.90370953]
[1641698050466,4.212e-05,3132.5,3132.4,28.59326]
[1641698050666,6.16,3133.4,3132.4,27.07687]
[1641698050867,6.16,3133.4,3132.5,2.79204051]
[1641698051168,0.00454739,3133.3,3132.8,0.79787]
[1641698051367,0.00454739,3133.3,3132.9,4.06963093]
[1641698051566,6.16,3133.4,3133.1,1.54747364]
[1641698051567,0.00397896,3133.2,3133.1,1.54747364]
[1641698051766,0.00397896,3133.2,3133.1,8.12148518]
[1641698052418,0.00397896,3133.2,3133.1,1.54747364]
[1641698053014,0.00397896,3133.2,3133.1,0.3]
[1641698054114,0.00397896,3133.2,3133.1,0.6]
[1641698054314,1.81384693,3133.4,3133.2,1.16933]
[1641698054514,1.81384693,3133.4,3133.3,0.3]
[1641698054714,1.69592381,3133.9,3133.3,0.3]
[1641698054917,0.00113685,3133.4,3133.3,1.89578]
[1641698055314,0.00113685,3133.4,3133.3,3.50935374]
[1641698057267,0.00113685,3133.4,3133.3,1.89578]
[1641698058067,0.00113685,3133.4,3133.2,1.16926]
[1641698058268,0.00113685,3133.4,3133.0,1.1454]
[1641698058467,0.00113685,3133.4,3132.7,4.06607598]
[1641698058670,0.00113685,3133.4,3132.7,6.84219598]
[1641698058867,0.00113685,3133.4,3133.3,1.61125712]
[1641698059068,1.5962,3133.6,3133.3,1.61125712]
[1641698060028,1.5962,3133.6,3133.1,1.61125712]
[1641698060029,0.79809,3133.4,3133.1,1.61125712]
[1641698060421,0.79809,3133.4,3133.2,0.00113685]
[1641698060821,0.79809,3133.4,3133.1,0.00170527]
[1641698061421,1.79809,3133.4,3133.1,0.00170527]
[1641698062823,1.79809,3133.4,3132.9,0.00284212]
[1641698063769,0.79809,3133.4,3132.9,0.00284212]
[1641698063969,0.79809,3133.4,3132.8,0.00341054]
[1641698064969,0.79809,3133.4,3132.8,1.61466766]
[1641698065370,0.79809,3133.4,3132.9,0.00284212]
[1641698065671,0.79809,3133.4,3133.0,1.61125712]
[1641698066071,0.79809,3133.4,3133.1,0.00170527]
[1641698068320,0.79809,3133.4,3133.1,1.61296239]
[1641698068720,0.79809,3133.4,3133.2,0.00113685]
[1641698069725,8.7831,3134.2,3133.2,1.61239397]
[1641698069923,0.458,3134.2,3133.2,1.61239397]
[1641698070124,0.00341054,3134.0,3133.2,1.61239397]
[1641698070522,0.458,3134.2,3133.2,1.61239397]
[1641698070523,0.00284212,3133.9,3133.2,1.61239397]
[1641698070971,0.0022737,3133.8,3133.2,1.61239397]
[1641698071377,0.00170527,3133.7,3133.2,1.61239397]
[1641698071772,0.79811,3133.5,3133.2,1.61239397]
[1641698073473,0.79811,3133.5,3133.2,0.00113685]
[1641698074273,0.79811,3133.5,3133.2,1.61239397]
[1641698076120,0.79811,3133.5,3133.3,1.61125712]
[1641698076719,0.79811,3133.5,3133.2,1.61239397]
[1641698077522,0.79811,3133.5,3133.3,1.61125712]
[1641698079770,0.79811,3133.5,3133.4,1.61125712]
[1641698080371,0.79811,3133.5,3133.0,0.00227369]
[1641698081174,0.76291507,3133.6,3133.1,2.35]
[1641698081574,0.76291507,3133.6,3133.2,0.00113685]
[1641698082624,0.76291507,3133.6,3133.5,1.62043804]
[1641698083025,0.76405192,3133.6,3133.5,1.62043804]
[1641698085026,0.79805,3133.7,3133.5,1.62043804]
[1641698085665,0.79805,3133.7,3133.4,1.62043804]
[1641698085867,1.59621,3133.6,3133.4,1.62043804]
[1641698086667,1.59621,3133.6,3133.5,1.62043804]
[1641698087368,0.79826,3133.4,3133.2,0.00113685]
[1641698087568,1.79826,3133.4,3133.2,0.00113685]
[1641698087767,1.79826,3133.4,3132.6,0.00568424]
[1641698087968,1.5966537,3133.2,3132.6,0.00568424]
[1641698088168,1.59665,3133.0,3132.6,0.00568424]
[1641698088369,1.59665,3133.0,3132.5,0.00625266]
[1641698089839,0.79833,3132.9,3132.5,0.00625266]
[1641698090238,0.79833,3132.9,3132.4,0.00682108]
[1641698090446,0.79833,3132.9,3132.2,0.00795793]
[1641698090637,0.79833,3132.9,3132.1,0.00852635]
[1641698090838,0.79833,3132.9,3132.2,0.00795793]
[1641698091038,0.79833,3132.9,3132.1,0.00852635]
[1641698091636,0.79833,3132.9,3132.4,0.7981897]
[1641698091837,0.79833,3132.9,3132.5,0.79818]
[1641698092038,0.79833,3132.9,3132.5,0.80443266]
[1641698092338,0.79833,3132.9,3132.6,0.00568424]
[1641698092938,0.79833,3132.9,3132.4,0.00682108]
[1641698093971,0.79833,3132.9,3132.5,0.79819]
[1641698094370,0.79833,3132.9,3132.6,0.00568424]
[1641698094775,0.79833,3132.9,3132.4,4.06607598]
[1641698095072,0.79833,3132.9,3132.5,0.00625266]
[1641698096173,0.79833,3132.9,3132.4,0.00682108]
[1641698096573,0.79849,3132.6,3132.4,0.00682108]
[1641698096772,1.5969609,3132.6,3132.4,0.00682108]
[1641698097235,2.5969609,3132.6,3132.4,0.00682108]
[1641698097434,0.79849,3132.6,3132.4,0.00682108]
[1641698098636,0.79849,3132.6,3132.0,0.79832]
[1641698098836,0.79849,3132.6,3132.0,1.59664]
[1641698099040,0.79849,3132.6,3132.1,0.00852635]
[1641698100039,0.79849,3132.6,3132.1,0.80682635]
[1641698100238,0.79849,3132.6,3132.1,0.00852635]
[1641698100438,0.79849,3132.6,3132.2,0.00795793]
[1641698100667,0.79849,3132.6,3132.1,0.30852635]
[1641698100869,1.59643,3132.9,3132.2,0.00795793]
[1641698101071,1.59643,3132.9,3132.2,0.30795793]
[1641698101276,0.79823,3132.6,3132.2,4.06607598]
[1641698101469,1.96642,3133.3,3132.3,0.30738951]
[1641698101470,1.1681,3133.3,3132.3,0.30738951]
[1641698101869,0.01228004,3133.5,3132.6,0.53323622]
[1641698102069,1.59639,3133.0,3132.4,1.215784]
[1641698102268,1.59639,3133.0,3132.7,0.00511581]
[1641698102468,1.59639,3133.0,3132.5,0.00625266]
[1641698102670,1.59639,3133.0,3132.4,0.80503108]
[1641698102870,1.59639,3133.0,3132.6,0.79818]
[1641698103370,1.59639,3133.0,3132.7,0.58249987]
[1641698103571,1.59639,3133.0,3132.7,0.00511581]
[1641698103771,1.59639,3133.0,3132.8,0.00454739]
[1641698103972,1.59639,3133.0,3132.5,0.00625266]
[1641698104174,4.79639,3133.0,3132.5,0.00625266]
[1641698106024,3.39327143,3132.9,3132.5,0.00625266]
[1641698106223,3.39327143,3132.9,3132.2,4.06607598]
[1641698106224,0.79852,3132.7,3132.2,4.06607598]
[1641698106423,0.79852,3132.7,3132.3,0.00113685]
[1641698106624,0.79854,3132.6,3132.3,0.00113685]
[1641698106825,8.4982301,3132.6,3132.4,1.62648686]
[1641698107024,3.00525135,3132.5,3132.4,1.62648686]
[1641698107222,3.25,3132.4,3131.5,4.14585598]
[1641698107624,3.25,3132.4,3131.6,0.00397896]
[1641698107625,1.59715,3132.1,3131.6,0.00397896]
[1641698107825,0.79859,3132.1,3131.6,0.00397896]
[1641698108474,0.79859,3131.9,3131.6,0.00397896]
[1641698108670,0.7986,3131.8,3131.5,0.00454738]
[1641698108870,0.7986,3131.8,3131.3,4.06607598]
[1641698108871,0.7986,3131.8,3131.4,0.00511581]
[1641698109375,0.05815538,3131.6,3131.4,0.00511581]
[1641698109571,0.79848,3131.5,3131.4,0.00511581]
[1641698109771,0.79848,3131.5,3131.2,0.00625265]
[1641698110170,0.79848,3131.5,3131.1,4.35464174]
[1641698110371,0.00113685,3131.4,3131.1,4.05464174]
[1641698110871,0.79859,3131.3,3131.1,4.05464174]
[1641698111923,0.05815538,3131.6,3131.4,3.40646276]
[1641698112120,0.05815538,3131.6,3131.0,1.59708]
[1641698112322,0.05815538,3131.6,3131.2,0.79963685]
[1641698112522,0.79855,3131.5,3131.2,0.60113685]
[1641698113122,0.79855,3131.5,3131.2,0.00113685]
[1641698113524,0.79855,3131.5,3131.3,1.09847]
[1641698113822,0.79855,3131.5,3131.3,1.84692]
[1641698114622,0.05815538,3131.4,3131.3,1.84692]
[1641698114822,0.05815538,3131.4,3131.3,1.09845]
[1641698115025,0.05815538,3131.4,3131.3,1.39845]
[1641698115705,8.7542,3132.8,3131.4,18.68]
[1641698115887,3.9583,3132.9,3132.3,0.65891006]
[1641698116090,1.0,3133.3,3132.3,0.65891006]
[1641698116488,0.79822,3132.7,3132.3,0.65891006]
[1641698116890,0.00682107,3132.6,3132.3,2.55534136]
[1641698117094,0.00682107,3132.6,3132.4,0.3]
[1641698117289,0.00625265,3132.5,3132.4,0.3]
[1641698117488,4.50671554,3133.4,3132.4,0.3]
[1641698117489,5.30498554,3133.4,3132.4,0.3]
[1641698117688,0.7982681,3133.2,3132.4,0.05]
[1641698117889,0.00113685,3132.7,3132.3,0.3]
[1641698118191,0.79823,3132.6,3132.3,0.3]
[1641698118389,0.79823,3132.6,3132.1,1.4963]
[1641698118590,0.79823,3132.6,3132.0,4.05315658]
[1641698118788,0.79823,3132.6,3132.2,0.00170527]
[1641698118989,0.79823,3132.6,3132.1,0.00227369]
[1641698119414,0.79823,3132.6,3131.9,0.00341054]
[1641698120121,0.79823,3132.6,3132.1,0.79827]
[1641698120318,3.2,3132.7,3132.2,3.24323856]
[1641698120522,0.00454739,3133.3,3132.4,23.93]
[1641698120718,0.00454739,3133.3,3133.1,0.62686418]
[1641698120919,6.16,3133.8,3133.1,0.9201]
[1641698121118,6.16,3133.8,3133.2,0.79799]
[1641698121323,0.00682108,3133.7,3133.2,0.79799]
[1641698121518,0.79803,3133.5,3133.1,0.3]
[1641698121817,0.00511581,3133.4,3133.2,0.69668727]
[1641698122019,7.75596,3133.8,3133.5,0.80314581]
[1641698122329,1.84917678,3134.5,3133.9,18.68]
[1641698122519,0.50957678,3134.5,3134.4,5.26221535]
[1641698122722,6.9897145,3135.9,3135.4,1.13799028]
[1641698122918,6.9897145,3135.9,3135.4,0.6548]
[1641698123193,0.01364216,3135.8,3135.6,0.79741]
[1641698123377,0.01364216,3135.8,3135.7,0.79738]
[1641698123577,6.9356,3135.9,3135.7,1.39738]
[1641698123977,0.0541145,3135.8,3135.7,1.39738]
[1641698124479,0.0541145,3135.8,3135.7,3.55053765]
[1641698124680,0.0541145,3135.8,3135.7,3.55124802]
[1641698125078,0.0541145,3135.8,3135.7,2.75386802]
[1641698125279,0.0541145,3135.8,3135.7,4.36982446]
[1641698126280,0.0541145,3135.8,3135.7,2.75386802]
[1641698126481,6.7397145,3135.9,3135.7,2.75386802]
[1641698126681,6.7397145,3135.9,3135.8,2.52740461]
[1641698126921,6.4567,3137.1,3135.8,2.52740461]
[1641698126922,2.5,3137.1,3136.7,0.49604351]
[1641698127222,2.5,3137.1,3136.7,1.77884351]
[1641698127424,2.5,3137.1,3136.8,2.04939307]
[1641698127622,2.45,3137.1,3136.8,3.19949576]
[1641698128021,2.50415309,3137.1,3136.8,3.19949576]
[1641698128522,2.45,3137.1,3136.8,3.79949576]
[1641698128722,7.3814,3137.0,3136.8,3.79949576]
[1641698128924,7.3814,3137.0,3136.9,2.29593636]
[1641698129529,7.3814,3137.0,3136.9,3.88999256]
[1641698129726,3.5856,3137.0,3136.9,10.13999256]
[1641698129928,0.9440375,3137.8,3137.1,5.0017]
[1641698130134,0.9440375,3137.8,3137.2,4.04274911]
[1641698130325,0.9440375,3137.8,3137.3,0.3]
[1641698130326,0.02444221,3137.7,3137.3,0.3]
[1641698130527,0.79672,3139.3,3137.8,5.25]
[1641698130778,3.8086,3139.7,3139.2,0.65228221]
[1641698130980,0.01234629,3140.2,3139.2,2.20068221]
[1641698131376,0.01136847,3139.7,3139.2,2.20068221]
[1641698131674,0.01080005,3139.6,3139.2,2.20068221]
[1641698132074,5.89127791,3140.2,3139.2,2.20068221]
[1641698132276,5.89127791,3140.2,3139.2,3.96182193]
[1641698132277,6.68788791,3140.2,3139.2,3.96182193]
[1641698132482,0.00341054,3140.1,3139.3,0.00113684]
[1641698132879,0.00284212,3140.0,3139.8,0.03410541]
[1641698133077,0.00284212,3140.0,3139.3,0.00113684]
[1641698133277,0.0022737,3139.9,3139.3,2.00286255]
[1641698133679,0.00170527,3139.8,3139.3,2.00286255]
[1641698134080,0.00113685,3139.7,3139.3,2.00286255]
[1641698134922,6.68788791,3140.2,3139.3,2.00286255]
[1641698134923,0.89786023,3140.2,3139.3,2.00286255]
[1641698135130,0.89786023,3140.2,3139.4,0.00170527]
[1641698135424,0.89786023,3140.2,3139.4,1.61766171]
[1641698135425,0.00227369,3140.1,3139.4,1.61766171]
[1641698135825,0.00170527,3140.0,3139.5,2.02214132]
[1641698136024,0.00170527,3140.0,3139.5,0.00113685]
[1641698136226,0.00113685,3139.9,3139.5,0.00113685]
[1641698136432,0.05528994,3139.9,3139.5,0.00113685]
[1641698136626,0.05528994,3139.9,3139.4,0.00170527]
[1641698136627,0.00113685,3139.9,3139.4,0.00170527]
[1641698136825,0.85095309,3139.8,3139.4,0.00170527]
[1641698137026,0.85095309,3139.8,3139.4,1.61766171]
[1641698137228,0.05415309,3139.7,3139.4,1.61766171]
[1641698137427,0.05415309,3139.7,3139.5,0.00113685]
[1641698138273,0.05415309,3139.7,3139.1,0.00341054]
[1641698138668,0.05415309,3139.7,3139.2,1.61595644]
[1641698139070,0.7968,3139.8,3139.3,0.00227369]
[1641698139272,0.00113685,3139.9,3139.3,2.38633013]
[1641698139472,4.4881175,3140.6,3139.4,2.95]
[1641698139473,3.55434759,3140.5,3139.4,2.95]
[1641698139671,9.4939175,3140.6,3140.2,0.50861603]
[1641698139871,9.4439175,3140.6,3140.2,1.58071603]
[1641698140278,9.4439175,3140.6,3140.2,1.0721]
[1641698140673,3.2839175,3140.6,3140.2,1.0721]
[1641698142228,1.0,3140.5,3140.2,1.0721]
[1641698142628,0.00284211,3140.4,3140.2,1.0721]
[1641698143028,4.15227369,3140.3,3140.2,1.0721]
[1641698143330,5.94877369,3140.3,3140.2,1.0721]
[1641698143829,4.94877369,3140.3,3140.2,1.0721]
[1641698144831,0.79877369,3140.3,3140.2,1.0721]
[1641698145031,0.79877369,3140.3,3140.1,0.1781]
[1641698145333,0.3433442,3141.0,3139.7,0.54046974]
[1641698145531,1.3433442,3141.0,3139.7,1.47156974]
[1641698145772,0.00113685,3140.5,3139.8,0.00284212]
[1641698146673,0.7965325,3141.0,3139.8,0.00284212]
[1641698147070,0.00170527,3140.8,3139.8,0.00397897]
[1641698147472,0.00113684,3140.7,3139.8,0.00397897]
[1641698147876,0.79933211,3141.0,3139.8,0.00397897]
[1641698148274,2.84746,3141.1,3139.8,0.00397897]
[1641698148275,0.30379861,3141.1,3139.8,0.00397897]
[1641698148473,1.0,3141.0,3139.8,0.00397897]
[1641698148673,0.30379861,3141.1,3139.8,0.00625266]
[1641698149918,38.51110711,3140.9,3139.8,1.06825266]
[1641698150319,38.51110711,3140.9,3139.9,0.00568423]
[1641698150918,38.51110711,3140.9,3139.8,0.00625266]
[1641698151919,39.30755711,3140.9,3139.8,0.00625266]
[1641698152121,3.0,3140.7,3139.8,0.00625266]
[1641698152320,0.458,3140.6,3139.4,2.37350743]
[1641698152522,0.458,3140.6,3139.4,0.00852635]
[1641698152720,1.758,3140.6,3139.5,0.00795793]
[1641698152922,1.55467,3140.6,3139.1,0.66066774]
[1641698153183,0.3,3140.5,3139.2,2.36498108]
[1641698153376,0.458,3140.4,3139.2,2.37464428]
[1641698153576,0.458,3140.4,3139.3,0.00909477]
[1641698153577,1.21010269,3140.3,3139.3,0.00909477]
[1641698153776,0.458,3140.2,3139.3,0.00909477]
[1641698153977,5.10992,3140.2,3139.3,0.00909477]
[1641698154176,5.10992,3140.2,3138.6,0.01307374]
[1641698154376,1.0,3140.1,3138.6,0.01307374]
[1641698154577,1.67465335,3140.3,3138.6,1.62903018]
[1641698154776,0.458,3140.2,3138.6,1.62903018]
[1641698154978,0.458,3140.2,3138.7,0.01250532]
[1641698155177,1.25472,3140.2,3138.7,0.01250532]
[1641698155379,3.61747806,3140.4,3138.7,0.01250532]
[1641698155582,3.61747806,3140.4,3138.8,0.01219787]
[1641698155583,0.458,3140.3,3138.8,0.01219787]